lending/lending_fUSD_20250408
["ID","MTS","AMOUNT","RATE_DAILY","PERIOD"]
[357549475,1744135893691,-1206.08,0.00056164,120]
[357549476,1744135893701,-500.0,0.00056164,120]
[357549477,1744135893711,-500.0,0.00056164,120]
[357549478,1744135893720,-500.0,0.00056164,120]
[357549479,1744135893729,-500.0,0.00056164,120]
[357549480,1744135893739,-706.13,0.00056164,120]
[357549481,1744135893748,-500.0,0.00056164,120]
[357549482,1744135893758,-500.0,0.00056164,120]
[357549483,1744135893767,-500.0,0.00056164,120]
[357549484,1744135893775,-500.0,0.00056164,120]
[357549485,1744135893787,-1079.35,0.00056164,120]
[357549486,1744135893797,-500.0,0.00056164,120]
[357549487,1744135893806,-500.0,0.00056164,120]
[357549488,1744135893814,-500.0,0.00056164,120]
[357549489,1744135893823,-726.46,0.00056164,120]
[357549490,1744135893832,-500.0,0.00056164,120]
[357549491,1744135893841,-615.19,0.00056164,120]
[357549492,1744135893850,-500.0,0.00056164,120]
[357549493,1744135893861,-1342.18,0.00056164,120]
[357549494,1744135893870,-687.95,0.00056164,120]
[357549495,1744135893880,-646.6,0.00056164,120]
[357549496,1744135893889,-547.83,0.00056164,120]
[357549497,1744135893897,-500.0,0.00056164,120]
[357549498,1744135893907,-513.92,0.00056164,120]
[357549499,1744135893916,-1247.459857,0.00056164,120]
[357549500,1744135893925,-396.28,0.00056164,120]
[357549501,1744135893934,-500.0,0.00056164,120]
[357549502,1744135893943,-500.0,0.00056164,7]
[357549503,1744135893953,-500.0,0.00056164,120]
[357549504,1744135893963,-3011.86,0.00056164,120]
[357549505,1744135893972,-711.83,0.00056164,120]
[357549506,1744135893981,-500.0,0.00056164,120]
[357549507,1744135893990,-500.0,0.00056164,120]
[357549508,1744135894000,-500.0,0.00056164,120]
[357549509,1744135894010,-853.97,0.00056164,120]
[357549510,1744135894020,-588.885889,0.00056164,120]
[357549511,1744135894030,-500.0,0.00056164,120]
[357549512,1744135894041,-242.90317886,0.00056164,120]
[357549513,1744135894050,-500.0,0.00056164,120]
[357549514,1744135894060,-627.5,0.00056164,120]
[357549515,1744135894069,-500.0,0.00056164,120]
[357549516,1744135894079,-500.0,0.00056164,120]
[357549517,1744135894089,-595.62,0.00056164,120]
[357549518,1744135894098,-500.0,0.00056164,120]
[357549519,1744135894108,-631.1,0.00056164,120]
[357549520,1744135894117,-500.0,0.00056164,120]
[357549521,1744135894126,-500.0,0.00056164,120]
[357549522,1744135894136,-500.0,0.00056164,120]
[357549523,1744135894145,-500.0,0.00056164,120]
[357549524,1744135894154,-500.0,0.00056164,120]
[357549525,1744135894164,-935.92,0.00056164,120]
[357549526,1744135894174,-500.0,0.00056164,120]
[357549527,1744135894184,-500.0,0.00056164,120]
[357549528,1744135894193,-500.0,0.00056164,120]
[357549529,1744135894203,-500.0,0.00056164,120]
[357549530,1744135894212,-500.0,0.00056164,120]
[357549531,1744135894221,-500.0,0.00056164,120]
[357549532,1744135894230,-500.0,0.00056164,120]
[357549533,1744135894240,-500.0,0.00056164,120]
[357549534,1744135894249,-882.81,0.00056164,120]
[357549535,1744135894259,-500.0,0.00056164,120]
[357549536,1744135894268,-623.11,0.00056164,120]
[357549537,1744135894277,-500.0,0.00056164,120]
[357549538,1744135894287,-702.1,0.00056164,120]
[357549539,1744135894297,-500.0,0.00056164,120]
[357549540,1744135894306,-594.48,0.00056164,120]
[357549541,1744135894315,-500.0,0.00056164,120]
[357549542,1744135894324,-429.69828243,0.00056164,120]
[357549543,1744135894333,-1282.28,0.00056164,120]
[357549544,1744135894342,-500.0,0.00056164,120]
[357549545,1744135894352,-850.45,0.00056164,120]
[357549546,1744135894362,-540.94,0.00056164,120]
[357549547,1744135894371,-500.0,0.00056164,120]
[357549548,1744135894380,-660.48,0.00056164,120]
[357549549,1744135894389,-763.5,0.00056164,120]
[357549550,1744135894399,-768.76,0.00056164,120]
[357549551,1744135894408,-500.0,0.00056164,120]
[357549552,1744135894417,-828.56,0.00056164,120]
[357549553,1744135894427,-357.80675339,0.00056164,120]
[357549554,1744135894436,-500.0,0.00056164,120]
[357549555,1744135894445,-500.0,0.00056164,120]
[357549556,1744135894455,-500.0,0.00056164,120]
[357549557,1744135894465,-500.0,0.00056164,120]
[357549558,1744135894475,-516.93,0.00056164,120]
[357549559,1744135894484,-959.29,0.00056164,120]
[357549560,1744135894494,-500.0,0.00056164,120]
[357549561,1744135894504,-500.0,0.00056164,120]
[357549562,1744135894513,-500.0,0.00056164,120]
[357549563,1744135894522,-500.0,0.00056164,120]
[357549564,1744135894532,-500.0,0.00056164,120]
[357549565,1744135894542,-500.0,0.00056164,120]
[357549566,1744135894552,-566.02,0.00056164,120]
[357549567,1744135894561,-394.64927091,0.00056164,120]
[357549568,1744135894570,-714.7,0.00056164,120]
[357549569,1744135894580,-620.16,0.00056164,120]
[357549570,1744135894590,-683.43,0.00056164,120]
[357549571,1744135894599,-963.69,0.00056164,120]
[357549572,1744135894609,-528.14,0.00056164,120]
[357549573,1744135894620,-500.0,0.00056164,120]
[357549574,1744135894631,-500.0,0.00056164,120]
[357549575,1744135894641,-500.0,0.00056164,120]
[357549576,1744135894650,-500.0,0.00056164,120]
[357549577,1744135894662,-524.59,0.00056164,120]
[357549578,1744135894672,-500.0,0.00056164,120]
[357549579,1744135894682,-500.0,0.00056164,120]
[357549580,1744135894692,-500.0,0.00056164,120]
[357549581,1744135894704,-500.0,0.00056164,120]
[357549582,1744135894714,-1529.63,0.00056164,120]
[357549583,1744135894724,-500.0,0.00056164,120]
[357549584,1744135894734,-524.58,0.00056164,120]
[357549585,1744135894743,-737.15,0.00056164,120]
[357549586,1744135894753,-500.0,0.00056164,120]
[357549587,1744135894764,-500.0,0.00056164,120]
[357549588,1744135894773,-500.0,0.00056164,120]
[357549589,1744135894787,-577.69,0.00056164,120]
[357549590,1744135894798,-500.0,0.00056164,120]
[357549591,1744135894809,-500.0,0.00056164,120]
[357549592,1744135894820,-505.48,0.00056164,120]
[357549593,1744135894830,-500.0,0.00056164,120]
[357549594,1744135894840,-500.0,0.00056164,120]
[357549595,1744135894850,-594.23,0.00056164,120]
[357549596,1744135894859,-500.0,0.00056164,120]
[357549597,1744135894869,-797.82,0.00056164,120]
[357549598,1744135894879,-1000.0,0.00056164,120]
[357549599,1744135894889,-500.0,0.00056164,120]
[357549600,1744135894899,-500.0,0.00056164,120]
[357549601,1744135894909,-500.0,0.00056164,120]
[357549602,1744135894919,-500.0,0.00056164,120]
[357549603,1744135894929,-570.96,0.00056164,120]
[357549604,1744135894939,-500.0,0.00056164,120]
[357549605,1744135894949,-554.84,0.00056164,120]
[357549606,1744135894959,-500.0,0.00056164,120]
[357549607,1744135894969,-1205.99,0.00056164,120]
[357549608,1744135894978,-737.46,0.00056164,120]
[357549609,1744135894988,-625.2004107,0.00056164,120]
[357549610,1744135894998,-500.0,0.00056164,120]
[357549611,1744135895008,-508.06,0.00056164,120]
[357549612,1744135895017,-500.0,0.00056164,120]
[357549613,1744135895026,-500.0,0.00056164,120]
[357549614,1744135895039,-830.9,0.00056164,120]
[357549615,1744135895048,-500.0,0.00056164,120]
[357549616,1744135895058,-500.0,0.00056164,120]
[357549617,1744135895068,-500.0,0.00056164,120]
[357549618,1744135895077,-593.3,0.00056164,120]
[357549619,1744135895086,-500.0,0.00056164,120]
[357549620,1744135895096,-568.34,0.00056164,120]
[357549621,1744135895106,-547.36,0.00056164,120]
[357549622,1744135895116,-500.0,0.00056164,120]
[357549623,1744135895125,-500.0,0.00056164,120]
[357549624,1744135895134,-500.0,0.00056164,120]
[357549625,1744135895144,-512.59,0.00056164,120]
[357549626,1744135895153,-546.9989628,0.00056164,120]
[357549627,1744135895163,-500.0,0.00056164,120]
[357549628,1744135895172,-600.21,0.00056164,120]
[357549629,1744135895183,-1080.18,0.00056164,120]
[357549630,1744135895192,-500.0,0.00056164,120]
[357549631,1744135895202,-500.0,0.00056164,120]
[357549632,1744135895212,-500.0,0.00056164,120]
[357549633,1744135895221,-500.0,0.00056164,120]
[357549634,1744135895231,-500.0,0.00056164,120]
[357549635,1744135895240,-565.33,0.00056164,120]
[357549636,1744135895250,-500.0,0.00056164,120]
[357549637,1744135895261,-1102.49,0.00056164,120]
[357549638,1744135895270,-627.68,0.00056164,120]
[357549639,1744135895280,-500.0,0.00056164,120]
[357549640,1744135895291,-297.75992193,0.00056164,120]
[357549641,1744135895301,-500.0,0.00056164,120]
[357549642,1744135895311,-500.0,0.00056164,120]
[357549643,1744135895322,-500.0,0.00056164,120]
[357549644,1744135895332,-500.0,0.00056164,120]
[357549645,1744135895342,-500.0,0.00056164,120]
[357549646,1744135895352,-651.86,0.00056164,120]
[357549647,1744135895362,-500.0,0.00056164,120]
[357549648,1744135895372,-615.97,0.00056164,3]
[357549649,1744135895381,-1008.75,0.00056164,120]
[357549650,1744135895391,-500.0,0.00056164,120]
[357549651,1744135895401,-500.0,0.00056164,120]
[357549652,1744135895411,-548.5,0.00056164,120]
[357549653,1744135895420,-500.0,0.00056164,120]
[357549654,1744135895620,-500.0,0.00056164,120]
[357549655,1744135895633,-500.0,0.00056164,120]
[357549656,1744135895642,-630.49,0.00056164,120]
[357549657,1744135895652,-546.05,0.00056164,120]
[357549658,1744135895663,-1865.07,0.00056164,120]
[357549659,1744135895672,-500.0,0.00056164,120]
[357549660,1744135895682,-511.68,0.00056164,120]
[357549661,1744135895694,-564.61,0.00056164,120]
[357549662,1744135895705,-500.0,0.00056164,120]
[357549663,1744135895715,-763.62,0.00056164,120]
[357549664,1744135895724,-500.0,0.00056164,120]
[357549665,1744135895734,-1679.19,0.00056164,120]
[357549666,1744135895743,-500.0,0.00056164,120]
[357549667,1744135895752,-500.0,0.00056164,120]
[357549668,1744135895762,-500.0,0.00056164,120]
[357549669,1744135895771,-660.04,0.00056164,120]
[357549670,1744135895781,-500.0,0.00056164,120]
[357549671,1744135895793,-554.22,0.00056164,120]
[357549672,1744135895803,-722.4,0.00056164,120]
[357549673,1744135895813,-1478.16,0.00056164,120]
[357549674,1744135895822,-799.85,0.00056164,120]
[357549675,1744135895833,-780.29,0.00056164,120]
[357549676,1744135895842,-602.6,0.00056164,120]
[357549677,1744135895853,-646.7,0.00056164,120]
[357549678,1744135895863,-579.68463694,0.00056164,120]
[357549679,1744135895873,-613.26,0.00056164,120]
[357549680,1744135895882,-500.0,0.00056164,120]
[357549681,1744135895892,-500.0,0.00056164,120]
[357549682,1744135895901,-500.0,0.00056164,120]
[357549683,1744135895911,-1227.77,0.00056164,120]
[357549684,1744135895921,-500.0,0.00056164,120]
[357549685,1744135895930,-639.27,0.00056164,120]
[357549686,1744135895940,-1161.33,0.00056164,120]
[357549687,1744135895951,-1012.34,0.00056164,120]
[357549688,1744135895961,-500.0,0.00056164,120]
[357549689,1744135895971,-1476.66,0.00056164,120]
[357549690,1744135895980,-500.0,0.00056164,120]
[357549691,1744135895990,-518.9,0.00056164,120]
[357549692,1744135896000,-500.0,0.00056164,120]
[357549693,1744135896010,-714.16,0.00056164,120]
[357549694,1744135896020,-500.0,0.00056164,120]
[357549695,1744135896030,-500.0,0.00056164,120]
[357549696,1744135896043,-521.99,0.00056164,120]
[357549697,1744135896054,-707.18,0.00056164,120]
[357549698,1744135896063,-802.54,0.00056164,120]
[357549699,1744135896074,-500.0,0.00056164,120]
[357549700,1744135896085,-599.6,0.00056164,120]
[357549701,1744135896095,-704.21,0.00056164,120]
[357549702,1744135896105,-500.0,0.00056164,120]
[357549703,1744135896115,-500.0,0.00056164,120]
[357549704,1744135896124,-641.96,0.00056164,120]
[357549705,1744135896134,-500.0,0.00056164,120]
[357549706,1744135896144,-938.36,0.00056164,120]
[357549707,1744135896154,-836.32,0.00056164,120]
[357549708,1744135896164,-500.0,0.00056164,120]
[357549709,1744135896174,-500.0,0.00056164,120]
[357549710,1744135896184,-500.0,0.00056164,120]
[357549711,1744135896193,-1001.73,0.00056164,120]
[357549712,1744135896203,-1758.82,0.00056164,120]
[357549713,1744135896213,-500.0,0.00056164,120]
[357549714,1744135896223,-888.6,0.00056164,120]
[357549715,1744135896232,-1712.57,0.00056164,120]
[357549716,1744135896241,-500.0,0.00056164,120]
[357549717,1744135896251,-669.22,0.00056164,120]
[357549718,1744135896260,-597.59,0.00056164,120]
[357549719,1744135896270,-500.0,0.00056164,120]
[357549720,1744135896279,-500.0,0.00056164,120]
[357549721,1744135896290,-500.0,0.00056164,120]
[357549722,1744135896300,-808.98,0.00056164,120]
[357549723,1744135896309,-500.0,0.00056164,120]
[357549724,1744135896319,-878.06,0.00056164,120]
[357549725,1744135896328,-539.63,0.00056164,120]
[357549726,1744135896338,-500.0,0.00056164,120]
[357549727,1744135896347,-500.0,0.00056164,120]
[357549728,1744135896357,-500.0,0.00056164,120]
[357549729,1744135896367,-500.0,0.00056164,120]
[357549730,1744135896376,-500.0,0.00056164,120]
[357549731,1744135896386,-500.0,0.00056164,120]
[357549732,1744135896396,-500.0,0.00056164,120]
[357549733,1744135896405,-990.1,0.00056164,120]
[357549734,1744135896415,-550.93,0.00056164,120]
[357549735,1744135896425,-1032.36,0.00056164,120]
[357549736,1744135896435,-1056.72,0.00056164,120]
[357549737,1744135896444,-1303.1,0.00056164,120]
[357549738,1744135896455,-500.0,0.00056164,120]
[357549739,1744135896465,-545.23,0.00056164,120]
[357549740,1744135896474,-500.0,0.00056164,120]
[357549741,1744135896484,-500.0,0.00056164,120]
[357549742,1744135896494,-500.0,0.00056164,120]
[357549743,1744135896504,-951.16,0.00056164,120]
[357549744,1744135896514,-500.0,0.00056164,120]
[357549745,1744135896523,-947.72,0.00056164,120]
[357549746,1744135896535,-808.53,0.00056164,120]
[357549747,1744135896544,-845.46,0.00056164,120]
[357549748,1744135896554,-500.0,0.00056164,120]
[357549749,1744135896564,-379.44612978,0.00056164,120]
[357549750,1744135896574,-500.0,0.00056164,120]
[357549751,1744135896584,-500.0,0.00056164,120]
[357549752,1744135896595,-833.03,0.00056164,120]
[357549753,1744135896605,-2431.15,0.00056164,120]
[357549754,1744135896615,-1568.64,0.00056164,120]
[357549755,1744135896626,-975.29,0.00056164,120]
[357549756,1744135896636,-806.29,0.00056164,120]
[357549757,1744135896646,-500.0,0.00056164,120]
[357549758,1744135896656,-500.0,0.00056164,120]
[357549759,1744135896667,-500.0,0.00056164,120]
[357549760,1744135896678,-929.27,0.00056164,120]
[357549761,1744135896687,-1263.92,0.00056164,120]
[357549762,1744135896698,-500.0,0.00056164,120]
[357549763,1744135896707,-6744.61,0.00056164,2]
[357549764,1744135896717,-1745.31,0.00056164,120]
[357549765,1744135896727,-500.0,0.00056164,120]
[357549766,1744135896737,-784.78,0.00056164,120]
[357549767,1744135896746,-1297.19,0.00056164,120]
[357549768,1744135896756,-671.69,0.00056164,120]
[357549769,1744135896766,-844.34,0.00056164,120]
[357549770,1744135896775,-500.0,0.00056164,120]
[357549771,1744135896786,-736.0,0.00056164,120]
[357549772,1744135896795,-500.0,0.00056164,120]
[357549773,1744135896805,-500.0,0.00056164,120]
[357549774,1744135896814,-500.0,0.00056164,120]
[357549775,1744135896824,-596.17,0.00056164,120]
[357549776,1744135896833,-1049.21,0.00056164,120]
[357549777,1744135896843,-878.89,0.00056164,120]
[357549778,1744135896852,-500.0,0.00056164,120]
[357549779,1744135896862,-520.04,0.00056164,120]
[357549780,1744135896871,-581.28,0.00056164,120]
[357549781,1744135896881,-1004.09,0.00056164,120]
[357549782,1744135896890,-500.0,0.00056164,120]
[357549783,1744135896900,-500.0,0.00056164,120]
[357549784,1744135896909,-500.0,0.00056164,120]
[357549785,1744135896919,-1139.43,0.00056164,120]
[357549786,1744135896928,-769.0,0.00056164,120]
[357549787,1744135896937,-500.0,0.00056164,120]
[357549788,1744135896947,-500.0,0.00056164,120]
[357549789,1744135896957,-691.29,0.00056164,120]
[357549790,1744135896966,-2188.68,0.00056164,120]
[357549791,1744135896976,-500.0,0.00056164,120]
[357549792,1744135896985,-500.0,0.00056164,120]
[357549793,1744135896996,-980.44,0.00056164,120]
[357549794,1744135897006,-547.15,0.00056164,120]
[357549795,1744135897016,-591.63,0.00056164,120]
[357549796,1744135897026,-500.0,0.00056164,120]
[357549797,1744135897037,-707.17,0.00056164,120]
[357549798,1744135897048,-1356.13,0.00056164,120]
[357549799,1744135897058,-621.25,0.00056164,120]
[357549800,1744135897068,-1061.81,0.00056164,120]
[357549801,1744135897078,-671.05,0.00056164,120]
[357549802,1744135897088,-915.65,0.00056164,120]
[357549803,1744135897098,-991.48,0.00056164,120]
[357549804,1744135897108,-500.0,0.00056164,120]
[357549805,1744135897118,-500.0,0.00056164,120]
[357549806,1744135897128,-771.41,0.00056164,120]
[357549807,1744135897138,-735.03,0.00056164,120]
[357549808,1744135897147,-500.0,0.00056164,120]
[357549809,1744135897157,-1539.5,0.00056164,120]
[357549810,1744135897167,-500.0,0.00056164,120]
[357549811,1744135897177,-793.73,0.00056164,120]
[357549812,1744135897187,-2030.76,0.00056164,120]
[357549813,1744135897197,-645.49,0.00056164,120]
[357549814,1744135897207,-500.0,0.00056164,120]
[357549815,1744135897217,-500.0,0.00056164,120]
[357549816,1744135897227,-543.59,0.00056164,120]
[357549817,1744135897236,-1107.48,0.00056164,120]
[357549818,1744135897246,-500.0,0.00056164,120]
[357549819,1744135897255,-500.0,0.00056164,120]
[357549820,1744135897266,-1122.05,0.00056164,120]
[357549821,1744135897276,-500.0,0.00056164,120]
[357549822,1744135897288,-500.0,0.00056164,8]
[357549823,1744135897299,-918.42,0.00056164,120]
[357549824,1744135897310,-1784.68,0.00056164,120]
[357549825,1744135897321,-500.0,0.00056164,120]
[357549826,1744135897331,-665.51,0.00056164,120]
[357549827,1744135897342,-500.0,0.00056164,120]
[357549828,1744135897352,-578.6,0.00056164,120]
[357549829,1744135897363,-841.6,0.00056164,120]
[357549830,1744135897373,-500.0,0.00056164,120]
[357549831,1744135897384,-1052.26,0.00056164,120]
[357549832,1744135897394,-528.16,0.00056164,120]
[357549833,1744135897404,-768.18,0.00056164,120]
[357549834,1744135897415,-1672.07,0.00056164,118]
[357549835,1744135897425,-500.0,0.00056164,120]
[357549836,1744135897436,-1296.01,0.00056164,120]
[357549837,1744135897447,-1146.51,0.00056164,120]
[357549838,1744135897458,-500.0,0.00056164,120]
[357549839,1744135897468,-1000.0,0.00056164,120]
[357549840,1744135897478,-500.0,0.00056164,120]
[357549841,1744135897488,-500.0,0.00056164,120]
[357549842,1744135897497,-500.0,0.00056164,120]
[357549843,1744135897507,-803.86,0.00056164,120]
[357549844,1744135897517,-2828.98,0.00056164,120]
[357549845,1744135897527,-500.0,0.00056164,120]
[357549846,1744135897539,-825.98,0.00056164,120]
[357549847,1744135897550,-513.55,0.00056164,120]
[357549848,1744135897560,-500.0,0.00056164,120]
[357549849,1744135897569,-1752.77,0.00056164,120]
[357549850,1744135897579,-500.0,0.00056164,120]
[357549851,1744135897589,-1469.03,0.00056164,120]
[357549852,1744135897599,-674.74,0.00056164,120]
[357549853,1744135897609,-734.29,0.00056164,120]
[357549854,1744135897622,-895.79,0.00056164,120]
[357549855,1744135897632,-931.13,0.00056164,120]
[357549856,1744135897643,-239.65891125,0.00056164,120]
[357549857,1744135897653,-548.95,0.00056164,120]
[357549858,1744135897663,-500.0,0.00056164,120]
[357549859,1744135897673,-1851.47,0.00056164,120]
[357549860,1744135897683,-500.0,0.00056164,120]
[357549861,1744135897693,-500.0,0.00056164,120]
[357549862,1744135897706,-500.0,0.00056164,120]
[357549863,1744135897716,-943.92,0.00056164,120]
[357549864,1744135897726,-500.0,0.00056164,120]
[357549865,1744135897735,-2817.37,0.00056164,120]
[357549866,1744135897745,-643.01,0.00056164,120]
[357549867,1744135897755,-500.0,0.00056164,60]
[357549868,1744135897765,-500.0,0.00056164,120]
[357549869,1744135897774,-535.91,0.00056164,120]
[357549870,1744135897784,-500.0,0.00056164,120]
[357549871,1744135897795,-500.0,0.00056164,120]
[357549872,1744135897804,-1220.84,0.00056164,2]
[357549873,1744135897814,-2753.64,0.00056164,100]
[357549874,1744135897823,-500.0,0.00056164,120]
[357549875,1744135897833,-500.0,0.00056164,120]
[357549876,1744135897842,-2064.77,0.00056164,120]
[357549877,1744135897853,-500.0,0.00056164,120]
[357549878,1744135897862,-500.0,0.00056164,120]
[357549879,1744135897872,-500.0,0.00056164,120]
[357549880,1744135897881,-1736.05,0.00056164,120]
[357549881,1744135897891,-777.99,0.00056164,120]
[357549882,1744135897901,-500.0,0.00056164,120]
[357549883,1744135897911,-2563.65,0.00056164,120]
[357549884,1744135897920,-500.0,0.00056164,120]
[357549885,1744135897930,-1027.58,0.00056164,120]
[357549886,1744135897939,-751.14,0.00056164,120]
[357549887,1744135897949,-1287.88,0.00056164,120]
[357549888,1744135897958,-646.32,0.00056164,120]
[357549889,1744135897968,-500.0,0.00056164,120]
[357549890,1744135897977,-500.0,0.00056164,120]
[357549891,1744135897986,-509.41,0.00056164,120]
[357549892,1744135897996,-500.0,0.00056164,120]
[357549893,1744135898005,-500.0,0.00056164,120]
[357549894,1744135898015,-575.39,0.00056164,120]
[357549895,1744135898024,-2129.03,0.00056164,120]
[357549896,1744135898034,-1105.86,0.00056164,120]
[357549897,1744135898045,-1398.27,0.00056164,120]
[357549898,1744135898055,-500.0,0.00056164,120]
[357549899,1744135898064,-500.0,0.00056164,120]
[357549900,1744135898074,-500.0,0.00056164,120]
[357549901,1744135898083,-500.0,0.00056164,120]
[357549902,1744135898093,-500.0,0.00056164,120]
[357549903,1744135898103,-813.0,0.00056164,120]
[357549904,1744135898113,-500.0,0.00056164,120]
[357549905,1744135898122,-500.0,0.00056164,120]
[357549906,1744135898131,-1852.62,0.00056164,120]
[357549907,1744135898141,-1231.16,0.00056164,120]
[357549908,1744135898150,-2129.78,0.00056164,120]
[357549909,1744135898160,-500.0,0.00056164,120]
[357549910,1744135898169,-500.0,0.00056164,120]
[357549911,1744135898179,-735.03,0.00056164,120]
[357549912,1744135898188,-817.54,0.00056164,120]
[357549913,1744135898372,-500.0,0.00056164,120]
[357549914,1744135898384,-500.0,0.00056164,120]
[357549915,1744135898394,-500.0,0.00056164,120]
[357549916,1744135898403,-538.82,0.00056164,120]
[357549917,1744135898412,-500.0,0.00056164,120]
[357549918,1744135898422,-794.86,0.00056164,120]
[357549919,1744135898431,-500.0,0.00056164,120]
[357549920,1744135898440,-589.43,0.00056164,120]
[357549921,1744135898450,-500.0,0.00056164,120]
[357549922,1744135898460,-500.0,0.00056164,120]
[357549923,1744135898469,-703.81,0.00056164,120]
[357549924,1744135898479,-1762.5,0.00056164,120]
[357549925,1744135898488,-500.0,0.00056164,120]
[357549926,1744135898498,-1383.32,0.00056164,120]
[357549927,1744135898507,-500.0,0.00056164,2]
[357549928,1744135898517,-265.17158938,0.00056321,120]
[357549929,1744135898527,-689.11914121,0.00056321,120]
[357549930,1744135898538,-1663.12858184,0.00056321,120]
[357549931,1744135898549,-673.31,0.00056369,120]
[357549932,1744135898559,-500.0,0.00056395,120]
[357549933,1744135898568,-500.0,0.00056395,120]
[357549934,1744135898578,-500.0,0.00056395,120]
[357549935,1744135898588,-500.0,0.00056395,120]
[357549936,1744135898597,-248.1723489,0.00056395,120]
[357549937,1744135898607,-1460.93,0.00056396,120]
[357549938,1744135898616,-884.11,0.00056396,120]
[357549939,1744135898629,-2000.0,0.000564,90]
[357549940,1744135898639,-500.0,0.00056437,120]
[357549941,1744135898648,-500.0,0.00056437,120]
[357549942,1744135898659,-500.0,0.00056437,120]
[357549943,1744135898668,-522.2,0.00056437,120]
[357549944,1744135898678,-522.2,0.00056437,120]
[357549945,1744135898688,-522.2,0.00056437,120]
[357549946,1744135898699,-698.53,0.00056437,120]
[357549947,1744135898709,-698.53,0.00056437,120]
[357549948,1744135898719,-698.53,0.00056437,120]
[357549949,1744135898728,-1603.99,0.00056437,120]
[357549950,1744135898738,-1603.99,0.00056437,120]
[357549951,1744135898748,-1603.99,0.00056437,120]
[357549952,1744135898758,-1603.99,0.00056437,120]
[357549953,1744135898767,-1604.07215672,0.00056437,120]
[357549954,1744135898776,-500.0,0.00056438,16]
[357549955,1744135898786,-191.47,0.00056611,2]
[357549956,1744135898797,-265.17158938,0.00056797,120]
[357549957,1744135898807,-689.11914121,0.00056797,120]
[357549958,1744135898816,-1663.12858184,0.00056797,120]
[357549959,1744135898826,-300.0,0.000569,20]
[357549960,1744135898835,-580.15,0.00056985,120]
[357549961,1744135898845,-500.0,0.00056985,120]
[357549962,1744135898855,-932.66,0.00056985,120]
[357549963,1744135898865,-613.35,0.00056985,120]
[357549964,1744135898875,-500.0,0.00056985,120]
[357549965,1744135898885,-581.16,0.00056985,120]
[357549966,1744135898895,-72207.66,0.00056985,7]
[357549967,1744135898904,-1365.37,0.00056985,120]
[357549968,1744135898914,-1716.32,0.00056985,120]
[357549969,1744135898923,-2936.12,0.00056985,120]
[357549970,1744135898933,-681.07,0.00056985,120]
[357549971,1744135898943,-500.0,0.00056985,120]
[357549972,1744135898952,-1759.78,0.00056985,120]
[357549973,1744135898962,-1127.76,0.00056985,120]
[357549974,1744135898971,-500.0,0.00056985,120]